bitfinex-derivatives/quotes_ETHF0:USTF0_20260203
["timestamp","ask_amount","ask_price","bid_price","bid_amount"]
[1770111205311,0.00370553,2282.8,2282.1,7.61051645]
[1770111205507,0.00370553,2282.8,2282.2,2.37450936]
[1770111205713,2.33194206,2283.1,2282.2,4.17647355]
[1770111205915,2.33194206,2283.4,2282.2,2.37450936]
[1770111206207,4.68096898,2283.0,2282.1,9.41248064]
[1770111206412,4.68096898,2283.0,2282.2,11.78699]
[1770111206613,0.00483474,2283.0,2282.3,6.55098291]
[1770111206811,0.00483474,2283.0,2282.4,4.17647355]
[1770111207014,0.00483474,2283.0,2282.3,7.61051645]
[1770111207909,0.00483474,2283.0,2282.3,11.78699]
[1770111208112,2.33194206,2283.7,2282.6,2.37450936]
[1770111208612,2.33194206,2283.6,2282.6,7.61051645]
[1770111208814,2.33194206,2283.6,2282.6,11.78699]
[1770111209109,4.55827989,2283.5,2282.7,6.55098291]
[1770111209316,4.55827989,2283.5,2282.8,4.17647355]
[1770111209509,4.55827989,2283.5,2282.7,2.37450936]
[1770111210117,0.00435204,2283.6,2282.8,2.37450936]
[1770111210412,2.3362941,2283.6,2282.7,5.23600709]
[1770111210613,4.77042051,2283.5,2282.6,5.23600709]
[1770111210818,4.77042051,2283.5,2282.6,7.61051645]
[1770111211116,7.10236257,2283.5,2282.6,11.78699]
[1770111211318,2.33194206,2283.4,2282.7,4.17647355]
[1770111211616,5.28468419,2283.3,2282.1,6.47540216]
[1770111211813,5.28468419,2283.3,2282.0,2.37450936]
[1770111211814,0.21917,2283.2,2282.0,2.37450936]
[1770111212110,4.45691004,2283.1,2282.0,2.37450936]
[1770111212315,0.21919,2283.0,2281.9,0.00488765]
[1770111212516,0.21919,2283.0,2281.9,2.5715595]
[1770111212718,0.68261437,2282.9,2281.9,2.5715595]
[1770111213318,0.06046222,2282.8,2281.9,0.00488765]
[1770111213615,4.72965108,2282.7,2281.9,0.00488765]
[1770111214511,4.7901133,2282.7,2281.6,2.53644074]
[1770111214714,0.05557457,2282.6,2281.1,2.53888456]
[1770111214916,0.05557457,2282.5,2281.1,2.53888456]
[1770111215219,0.09124369,2282.4,2281.1,2.53888456]
[1770111215718,5.09658101,2282.3,2281.1,2.5439337]
[1770111216019,0.09124369,2282.2,2281.1,2.5439337]
[1770111216416,4.79247146,2282.2,2281.1,2.5439337]
[1770111216616,0.31048369,2282.5,2281.1,2.5439337]
[1770111216813,2.12478529,2282.1,2281.1,2.5439337]
[1770111217124,3.067,2282.9,2281.9,2.37450936]
[1770111217814,4.96345728,2282.8,2281.9,2.37450936]
[1770111218218,2.33194206,2282.7,2281.6,2.37450936]
[1770111218623,4.78042557,2282.6,2281.6,2.37450936]
[1770111221718,3.067,2282.9,2281.9,2.37450936]
[1770111221914,5.39894206,2282.9,2281.9,2.37450936]
[1770111222119,4.72192505,2282.8,2281.9,2.37450936]
[1770111224722,2.33194206,2282.5,2281.7,2.60808968]
[1770111224931,0.21925,2282.4,2281.4,2.37852077]
[1770111225225,4.97443118,2282.4,2281.4,2.37852077]
[1770111225425,4.97931174,2282.5,2281.4,2.37852077]
[1770111225626,3.068,2282.6,2281.4,2.37852077]
[1770111225827,4.97931174,2282.5,2281.4,2.37852077]
[1770111227326,3.068,2282.6,2281.4,2.37852077]
[1770111228029,0.41009644,2283.5,2281.6,2.37450936]
[1770111228326,4.69687235,2282.8,2281.7,2.37450936]
[1770111228726,5.10696879,2283.4,2281.7,2.37450936]
[1770111229028,4.69687235,2282.9,2281.7,2.37450936]
[1770111229526,0.41009644,2283.4,2281.7,2.37450936]
[1770111229721,0.41009644,2283.4,2281.9,2.37450936]
[1770111229922,4.65826276,2283.3,2282.0,2.37450936]
[1770111230519,5.09032589,2283.3,2282.0,2.37450936]
[1770111231024,0.43206313,2283.2,2281.6,2.35112102]
[1770111231231,0.43252066,2283.1,2281.6,2.35112102]
[1770111231530,4.82953652,2283.0,2281.6,2.35112102]
[1770111231729,5.26205718,2283.0,2281.6,2.35112102]
[1770111232122,0.65171066,2283.0,2281.6,2.35112102]
[1770111232321,5.0539694,2282.9,2281.6,2.35112102]
[1770111232526,5.0539694,2282.9,2281.7,2.51442841]
[1770111234924,5.49443147,2282.9,2281.7,2.51442841]
[1770111235830,0.44046207,2282.8,2281.7,2.51442841]
[1770111236330,5.37367026,2282.7,2281.7,2.51442841]
[1770111236531,0.44046207,2282.6,2281.5,2.51442841]
[1770111236831,4.8410473,2282.5,2281.5,2.51442841]
[1770111237225,4.93320819,2282.6,2281.5,2.51442841]
[1770111237631,0.21922,2282.8,2281.5,2.51442841]
[1770111237931,4.6544399,2282.6,2281.6,2.51442841]
[1770111238132,4.6544399,2282.7,2281.6,2.51442841]
[1770111238334,0.21922,2282.8,2281.6,2.51442841]
[1770111238536,5.05058174,2282.7,2281.6,2.51442841]
[1770111239734,5.05058174,2282.7,2281.7,2.51442841]
[1770111239935,4.70159557,2282.9,2281.8,2.51442841]
[1770111240437,3.068,2283.1,2281.8,2.51442841]
[1770111240633,5.01896335,2282.9,2282.0,2.51442841]
[1770111240834,5.01896335,2283.0,2282.0,2.51442841]
[1770111241134,3.068,2283.1,2282.0,2.51442841]
[1770111241332,4.68299464,2283.0,2282.1,7.74181081]
[1770111241638,4.68299464,2283.0,2282.2,2.51442841]
[1770111241940,4.68299464,2283.0,2282.1,3.92158938]
[1770111242141,3.068,2283.1,2282.2,2.51442841]
[1770111242339,5.00306208,2283.0,2282.2,2.51442841]
[1770111242538,5.00306208,2283.0,2282.3,2.51442841]
[1770111242740,3.068,2283.1,2282.3,2.51442841]
[1770111242941,3.068,2283.1,2282.4,2.51442841]
[1770111243139,3.068,2283.1,2282.4,6.43601779]
[1770111243336,0.43473854,2283.0,2282.3,3.92158938]
[1770111243542,5.09805168,2283.0,2282.1,3.92158938]
[1770111243743,5.09805168,2283.0,2282.0,2.51442841]
[1770111243941,4.66331314,2283.0,2282.0,2.51442841]
[1770111245446,5.11616623,2283.0,2282.0,2.51442841]
[1770111245739,0.45285309,2282.9,2281.8,9.14897178]
[1770111245945,4.66331314,2283.0,2282.0,2.51442841]
[1770111246141,4.55827703,2282.8,2282.0,2.51442841]
[1770111246446,5.04626864,2283.0,2282.0,2.51442841]
[1770111246645,3.28719,2283.1,2282.0,2.51442841]
[1770111246845,5.04626864,2283.0,2282.0,2.51442841]
[1770111247340,5.04626864,2283.0,2282.1,5.2273824]
[1770111247545,5.04626864,2283.0,2282.2,2.51442841]
[1770111248950,5.04626864,2283.0,2282.1,2.51442841]
[1770111250441,5.04626864,2283.0,2282.2,2.51442841]
[1770111252348,3.068,2283.1,2282.6,2.51442841]
[1770111252649,2.33190929,2283.6,2282.6,7.74181081]
[1770111252846,2.33190929,2283.6,2282.6,2.51442841]
[1770111253045,2.32755725,2283.4,2282.4,5.2273824]
[1770111253446,5.00894511,2283.3,2282.5,2.51442841]
[1770111253647,0.00435204,2283.6,2282.5,2.51442841]
[1770111253946,5.00894511,2283.5,2282.5,2.51442841]
[1770111254346,5.00894511,2283.5,2282.6,2.51442841]
[1770111254648,0.00435204,2283.6,2282.9,2.51442841]
[1770111254844,0.00435204,2283.6,2283.0,2.51442841]
[1770111255048,0.00435204,2283.6,2283.1,2.51442841]
[1770111255249,0.00435204,2283.6,2283.3,2.51442841]
[1770111255544,0.00435204,2283.6,2283.2,2.51442841]
[1770111256048,3.068,2284.3,2283.2,2.51442841]
[1770111256250,3.068,2284.3,2283.4,2.51442841]
[1770111256551,2.32755725,2285.0,2283.6,2.51442841]
[1770111257049,4.87844156,2284.6,2283.6,2.51442841]
[1770111257646,2.32755725,2284.5,2283.3,6.44529289]
[1770111257951,4.99756981,2284.4,2283.3,2.51442841]
[1770111258747,7.32512706,2284.4,2283.3,2.51442841]
[1770111259050,2.32755725,2284.4,2283.3,2.51442841]
[1770111259448,0.00469029,2285.0,2282.9,3.40842229]
[1770111259449,2.32755725,2284.2,2283.0,2.51442841]
[1770111259746,0.17896064,2284.1,2283.0,2.51442841]
[1770111260349,3.067,2284.3,2283.0,2.51442841]
[1770111260754,4.73990577,2284.2,2283.0,2.51442841]
[1770111261052,2.42660383,2284.1,2283.0,2.51442841]
[1770111261452,4.75378256,2284.0,2283.0,2.51442841]
[1770111262148,2.42660383,2283.9,2283.0,2.51442841]
[1770111262350,2.42660383,2283.9,2282.9,0.00542229]
[1770111262548,4.75179406,2283.8,2282.7,2.55378451]
[1770111262744,2.42660383,2284.0,2282.7,2.55378451]
[1770111262950,7.17839789,2283.9,2282.7,2.55378451]
[1770111263149,5.783,2284.1,2282.7,2.55378451]
[1770111263349,4.76854939,2283.8,2282.7,2.55378451]
[1770111263546,4.76854939,2283.8,2282.7,2.55892129]
[1770111263846,2.42660383,2284.0,2282.7,2.55892129]
[1770111264048,2.42660383,2283.9,2282.7,2.55892129]
[1770111264448,4.73325257,2283.8,2282.7,2.55892129]
[1770111264848,4.73325257,2283.9,2282.7,2.55892129]
[1770111265052,5.783,2284.1,2282.7,2.55892129]
[1770111265458,4.82237551,2283.8,2282.7,2.55892129]
[1770111265653,4.82237551,2284.0,2282.7,2.55892129]
[1770111265950,4.82237551,2283.8,2282.7,2.55892129]
[1770111266254,7.24897934,2284.0,2282.7,2.55892129]
[1770111266451,2.42660383,2284.0,2282.7,2.55892129]
[1770111266653,5.00944472,2283.9,2282.7,2.55892129]
[1770111267449,7.43604855,2283.9,2282.7,2.55892129]
[1770111267646,2.42660383,2283.8,2282.7,2.55892129]
[1770111267850,4.8642596,2284.0,2282.7,2.55892129]
[1770111268146,4.8642596,2283.7,2282.7,2.55892129]
[1770111268446,7.29086343,2284.0,2282.7,2.55892129]
[1770111268650,2.42660383,2284.0,2282.7,2.55892129]
[1770111268850,4.98933396,2283.6,2282.7,2.55892129]
[1770111269052,4.98933396,2283.9,2282.7,2.55892129]
[1770111269244,2.42660383,2284.0,2282.7,2.55892129]
[1770111269447,4.93013224,2283.6,2282.7,2.55892129]
[1770111269644,4.93013224,2283.9,2282.7,2.55892129]
[1770111269854,2.42660383,2284.0,2282.7,2.55892129]
[1770111270153,4.93013224,2283.9,2282.7,2.55892129]
[1770111270455,7.35673607,2283.9,2282.7,2.55892129]
[1770111270752,2.42660383,2283.9,2282.7,2.55892129]
[1770111271054,4.60750918,2283.8,2282.7,2.55892129]
[1770111271254,4.60750918,2283.8,2282.7,6.47086746]
[1770111271452,4.60750918,2283.8,2282.8,2.55378451]
[1770111272247,27.73682757,2285.3,2282.8,2.55378451]
[1770111272248,2.43129412,2285.0,2283.3,2.55378451]
[1770111272452,2.43129412,2285.0,2283.4,2.55378451]
[1770111272647,7.37814325,2284.8,2283.4,2.55378451]
[1770111272846,2.42660383,2284.7,2283.4,2.55378451]
[1770111273153,7.37814325,2284.7,2283.4,2.55378451]
[1770111273348,2.42660383,2284.7,2283.4,2.55378451]
[1770111273654,4.96637462,2284.6,2283.4,2.55378451]
[1770111273954,8.03237462,2284.6,2283.4,2.55378451]
[1770111274254,2.42660383,2284.5,2283.4,2.55378451]
[1770111274453,8.03237462,2284.6,2283.4,2.55378451]
[1770111274655,3.066,2284.6,2283.4,2.55378451]
[1770111274858,4.81788843,2284.5,2283.4,2.55378451]
[1770111275853,3.066,2284.6,2283.6,2.55378451]
[1770111276157,0.49369044,2284.6,2283.7,2.55378451]
[1770111276456,0.00469029,2285.0,2283.9,2.55378451]
[1770111276656,0.00469029,2285.0,2284.0,2.55378451]
[1770111278459,0.00469029,2285.0,2284.2,2.55378451]
[1770111278957,2.43129412,2285.0,2284.2,2.55378451]
[1770111279159,4.61999401,2284.9,2284.2,2.55378451]
[1770111279460,2.42660383,2285.7,2284.2,2.55378451]
[1770111279761,2.42660383,2285.6,2284.4,2.55378451]
[1770111280260,7.08628676,2285.5,2284.4,2.55378451]
[1770111280556,2.42973972,2285.5,2284.4,2.55904695]
[1770111284457,2.42973972,2285.5,2284.4,6.47099312]
[1770111284661,2.42973972,2285.5,2284.5,2.55378451]
[1770111284861,2.42660383,2285.3,2284.5,5.15798391]
[1770111285257,2.42660383,2285.3,2284.5,2.55378451]
[1770111285463,3.06813589,2285.5,2284.6,2.55378451]
[1770111286662,5.49473972,2285.5,2284.6,2.55378451]
[1770111287458,0.00313589,2285.5,2284.6,2.55378451]
[1770111287665,0.00313589,2285.5,2284.6,5.15798391]
[1770111287968,0.00313589,2285.5,2284.7,2.55378451]
[1770111288662,0.00313589,2285.5,2284.9,2.55378451]
[1770111288854,0.00313589,2285.5,2284.7,2.6041994]
[1770111289056,0.00313589,2285.5,2284.7,2.55378451]
[1770111291960,0.00313589,2285.5,2284.9,2.39563117]
[1770111294264,2.39441669,2286.0,2284.9,2.39563117]
[1770111294666,2.53712018,2285.8,2284.9,2.39563117]
[1770111295169,2.54053617,2285.8,2284.9,2.39563117]
[1770111297465,5.60453617,2285.8,2284.9,2.39563117]
[1770111299366,2.54053617,2285.8,2284.9,2.39563117]
[1770111299565,2.54053617,2285.8,2285.0,2.39563117]
[1770111301363,2.54053617,2285.8,2284.9,2.6041994]
[1770111301566,2.54053617,2285.8,2284.8,2.6041994]
[1770111301859,2.54053617,2285.8,2284.8,4.99983057]
[1770111302067,2.54053617,2285.8,2285.0,2.39563117]
[1770111302265,2.75908474,2286.1,2285.3,4.99983057]
[1770111303367,2.76252043,2286.1,2285.3,4.99983057]
[1770111303669,2.53712018,2285.9,2285.0,2.6041994]
[1770111303965,4.61291534,2285.8,2285.0,4.99983057]
[1770111304362,2.53712018,2285.9,2285.1,4.99983057]
[1770111305667,2.53712018,2285.9,2285.2,2.39563117]
[1770111306365,2.53712018,2285.9,2285.2,2.6041994]
[1770111306567,2.53712018,2285.7,2285.1,2.6041994]
[1770111308365,2.53712018,2285.7,2285.0,2.6041994]
[1770111308671,2.53712018,2285.5,2285.0,2.6041994]
[1770111309762,2.53712018,2285.3,2284.9,1.3821994]
[1770111310166,2.53712018,2285.3,2284.7,3.91194617]
[1770111311071,2.53712018,2285.3,2284.6,3.91194617]
[1770111312071,8.52512018,2285.7,2284.8,2.39563117]
[1770111312272,2.53712018,2285.5,2284.7,3.91194617]
[1770111312670,2.53712018,2285.3,2284.7,3.91194617]
[1770111313273,2.53712018,2285.1,2284.7,3.91194617]
[1770111314271,2.53712018,2285.1,2284.6,3.91194617]
[1770111315574,2.53712018,2284.9,2284.4,0.00526244]
[1770111315775,2.53712018,2284.9,2284.0,7.62301357]
[1770111315972,5.06112581,2284.8,2284.0,2.39563117]
[1770111316774,5.06112581,2284.8,2284.0,2.40120214]
[1770111317372,2.53712018,2285.2,2284.1,2.39563117]
[1770111317675,13.8376301,2285.1,2284.1,2.39563117]
[1770111318576,2.53712018,2285.0,2284.1,2.39563117]
[1770111318776,13.8376301,2285.1,2284.1,2.39563117]
[1770111319074,9.048,2285.1,2284.1,2.39563117]
[1770111320473,2.4962402,2284.9,2284.1,2.39563117]
[1770111320668,4.88641609,2285.0,2284.1,2.39563117]
[1770111320868,9.048,2285.1,2284.1,2.39563117]
[1770111321073,2.4962402,2285.2,2284.1,2.39563117]
[1770111321280,3.064,2285.2,2284.1,2.39563117]
[1770111321579,4.61110366,2285.1,2284.1,2.39563117]
[1770111322072,7.10734386,2285.1,2284.1,2.39563117]
[1770111322279,2.4962402,2285.0,2284.1,2.39563117]
[1770111322480,4.61110366,2285.1,2284.1,2.39563117]
[1770111322780,3.064,2285.2,2284.1,2.39563117]
[1770111323182,9.042,2285.4,2284.2,2.4332493]
[1770111323581,13.68878595,2285.4,2284.2,2.4332493]
[1770111323772,2.4962402,2285.8,2284.2,2.4332493]
[1770111323975,5.78564045,2286.1,2284.7,2.4332493]
[1770111324178,0.22540025,2286.1,2285.0,2.4332493]
[1770111324380,2.4962402,2286.8,2285.2,2.4332493]
[1770111324578,2.4962402,2286.8,2285.4,2.4332493]
[1770111325181,5.01745422,2286.7,2285.4,2.4332493]
[1770111325377,2.4962402,2286.6,2285.4,2.4332493]
[1770111325978,2.4962402,2286.4,2285.1,2.4332493]
[1770111326483,2.4962402,2286.2,2285.1,2.4332493]
[1770111326876,7.35110142,2286.1,2285.1,2.4332493]
[1770111327073,4.85486122,2286.1,2285.1,2.4332493]
[1770111327279,4.85486122,2286.2,2285.1,2.4332493]
[1770111327479,5.56433474,2286.7,2285.4,2.4332493]
[1770111327878,4.99877438,2286.6,2285.4,2.4332493]
[1770111328080,5.56433474,2286.7,2285.4,2.4332493]
[1770111328276,3.06809454,2286.7,2285.4,2.4332493]
[1770111330580,0.00409454,2286.7,2285.4,2.4332493]
[1770111330980,2.50033474,2286.7,2285.4,2.4332493]
[1770111332886,0.21878,2287.3,2285.1,2.14410073]
[1770111332887,2.7150202,2287.3,2286.0,2.4332493]
[1770111333285,4.92746497,2287.2,2286.0,2.4332493]
[1770111333586,4.92746497,2287.2,2286.2,2.4332493]
[1770111333987,2.4962402,2287.8,2286.4,2.4332493]
[1770111334484,4.6314475,2287.7,2286.4,2.4332493]
[1770111334685,2.4962402,2287.7,2286.4,2.4332493]
[1770111334881,3.28172,2287.9,2286.4,2.4332493]
[1770111335188,4.89028126,2287.8,2286.4,2.4332493]
[1770111335387,59.36712205,2288.9,2286.4,2.4332493]
[1770111335388,32.8420007,2289.3,2286.5,0.21886]
[1770111335580,29.03817009,2290.6,2289.3,2.14410073]
[1770111335785,31.16629889,2290.9,2289.4,5.629]
[1770111335979,2.5671288,2291.6,2289.8,2.14410073]
[1770111336186,2.5671288,2291.6,2290.3,2.14410073]
[1770111336478,31.16629889,2291.5,2290.3,2.14967631]
[1770111336682,2.64310644,2292.4,2290.8,2.14410073]
[1770111336988,3.063,2293.4,2290.8,2.14410073]
[1770111336989,2.5671288,2292.1,2290.8,2.14410073]
[1770111337186,2.5671288,2292.1,2290.8,6.51525768]
[1770111337482,10.09218472,2292.0,2290.9,10.13622183]
[1770111337680,0.21826,2292.8,2290.8,11.70602069]
[1770111337879,3.062,2292.9,2291.1,2.4332493]
[1770111338088,4.54604994,2292.7,2291.2,2.4332493]
[1770111338287,11.88419308,2292.7,2291.3,2.4332493]
[1770111338480,3.062,2292.9,2291.4,2.4332493]
[1770111338679,0.21819,2293.5,2291.5,2.4332493]
[1770111338891,4.54269298,2292.8,2291.5,2.4332493]
[1770111339086,16.43110124,2292.9,2291.5,4.37115695]
[1770111339389,11.88419308,2292.6,2291.4,2.4332493]
[1770111339585,0.00421518,2292.9,2291.4,2.4332493]
[1770111339586,4.54269298,2292.8,2291.4,2.4332493]
[1770111339784,2.7143502,2294.4,2292.0,2.4332493]
[1770111339986,2.4962402,2294.4,2292.7,2.4332493]
[1770111340186,2.4962402,2294.7,2293.2,2.4332493]
[1770111340489,0.075889,2295.3,2293.1,2.14410073]
[1770111340490,0.7638689,2294.6,2293.4,2.4332493]
[1770111340983,4.74010833,2295.3,2293.6,2.4332493]
[1770111340984,2.4962402,2295.3,2293.6,2.4332493]
[1770111341283,4.74080133,2294.8,2293.4,0.00415758]
[1770111341484,2.4962402,2294.3,2293.4,0.00415758]
[1770111341686,2.4962402,2294.1,2292.8,2.4332493]
[1770111342089,11.88419308,2294.0,2292.9,5.78319892]
[1770111342290,2.4962402,2294.0,2292.8,2.4332493]
[1770111342587,2.4962402,2294.0,2292.9,5.65191986]
[1770111342782,2.4962402,2293.3,2292.0,2.4332493]
[1770111342981,11.88419308,2293.0,2292.0,2.4332493]
[1770111343289,2.4962402,2292.9,2291.7,2.4332493]
[1770111343685,2.4962402,2292.9,2291.8,5.75611378]
[1770111343881,2.4962402,2292.9,2291.9,2.4332493]
[1770111343882,2.49996743,2292.9,2291.9,2.4332493]
[1770111344087,0.00372723,2292.9,2291.9,2.4332493]
[1770111344391,11.88792031,2292.9,2291.9,2.4332493]
[1770111344690,0.00372723,2292.9,2291.9,2.4332493]
[1770111345087,2.4962402,2292.7,2291.8,0.00529161]
[1770111345283,0.00372723,2292.9,2291.8,0.00529161]
[1770111345284,2.4962402,2292.6,2291.8,0.00529161]
[1770111345486,14.38043328,2292.5,2291.8,0.00529161]
[1770111345890,14.38043328,2292.0,2291.8,0.00529161]
[1770111346086,2.4962402,2292.0,2290.9,2.4332493]
[1770111346286,11.88419308,2291.8,2290.6,2.4332493]
[1770111346481,2.4962402,2291.9,2290.6,2.4332493]
[1770111346683,2.4962402,2291.8,2290.7,5.64326236]
[1770111346894,2.4962402,2291.6,2290.3,2.4332493]
[1770111347092,2.4962402,2291.9,2290.3,2.43854369]
[1770111347391,2.4962402,2291.7,2290.6,5.5820309]
[1770111347586,2.4962402,2291.7,2290.3,0.00529439]
[1770111347791,14.38043328,2291.5,2290.7,5.5820309]
[1770111348092,2.4962402,2291.5,2290.3,2.43854369]
[1770111348288,4.52731913,2291.7,2290.9,0.07855747]
[1770111348493,2.52785006,2292.5,2290.9,0.07855747]
[1770111348689,2.52785006,2292.5,2291.0,5.59730866]
[1770111349194,2.52785006,2292.5,2290.9,5.63090431]
[1770111349493,2.55033097,2292.3,2291.0,5.69565589]
[1770111349693,2.55033097,2292.3,2291.1,0.03359565]
[1770111350093,2.55033097,2292.3,2291.2,5.66206024]
[1770111350396,11.28492753,2292.2,2290.8,0.02464715]
[1770111350587,2.55068325,2292.2,2290.8,0.02464715]
[1770111350793,2.55068325,2292.2,2291.2,5.63587934]
[1770111350993,2.55068325,2292.2,2291.0,0.07665619]
[1770111351189,8.73424428,2292.0,2290.4,0.07665619]
[1770111351394,2.52467873,2291.9,2291.1,5.7787217]
[1770111351697,2.52467873,2292.6,2290.9,5.7787217]
[1770111351995,2.52465113,2292.4,2290.9,5.7787217]
[1770111352194,2.52465113,2292.2,2290.9,5.7787217]
[1770111352395,2.52465113,2291.7,2290.9,5.7787217]
[1770111352594,2.52465113,2291.7,2290.4,0.0772886]
[1770111353097,2.5197262,2291.5,2290.5,5.76839433]
[1770111353296,2.5197262,2291.5,2290.5,5.8555328]
[1770111353496,11.25397048,2291.5,2290.5,5.8555328]
[1770111353691,11.25397048,2291.5,2290.5,0.08713847]
[1770111353902,2.5197262,2291.4,2290.6,5.67154868]
[1770111354091,2.5197262,2291.4,2290.3,0.00529439]
[1770111354290,8.73424428,2291.3,2290.4,5.74052362]
[1770111354491,2.5197262,2291.2,2290.4,5.74052362]
[1770111354690,2.5197262,2290.9,2290.3,0.00529439]
[1770111354890,11.25397048,2290.9,2290.3,0.00529439]
[1770111355096,0.00478764,2291.2,2290.3,0.00529439]
[1770111355298,2.51553392,2290.9,2290.3,0.00529439]
[1770111355495,11.2497782,2290.8,2289.9,0.08713847]
[1770111355696,2.51553392,2290.8,2289.9,0.08713847]
[1770111355901,11.2497782,2290.8,2289.9,0.08713847]
[1770111356096,2.51553392,2291.1,2289.7,0.09552303]
[1770111356298,2.51553392,2291.1,2290.0,5.7568105]
[1770111356501,2.51553392,2290.9,2290.0,0.00487802]
[1770111356704,2.51553392,2290.7,2290.0,0.00487802]
[1770111356903,2.51553392,2291.1,2290.0,0.00487802]
[1770111357100,11.23114547,2291.0,2290.0,0.00487802]
[1770111357305,2.49690119,2291.0,2290.1,5.68066306]
[1770111358199,2.49690119,2291.0,2290.1,5.81345155]
[1770111358401,8.73424428,2290.9,2290.1,5.81345155]
[1770111358606,2.49690119,2291.0,2290.1,5.81345155]
[1770111358901,11.23114547,2290.9,2290.0,0.00487802]
[1770111359108,7.34822279,2290.9,2290.0,0.00487802]
[1770111359302,11.23114547,2290.9,2290.0,0.00487802]
[1770111360004,8.73424428,2290.6,2290.0,0.00487802]
[1770111360201,0.00478764,2291.2,2290.1,5.54469767]
[1770111360202,2.48872362,2291.1,2290.1,5.54469767]
[1770111360704,11.2229679,2290.9,2290.1,5.54469767]
[1770111360904,11.2229679,2290.9,2290.0,0.00487802]
[1770111361107,8.73424428,2290.8,2290.0,0.00487802]
[1770111361308,11.24983775,2290.7,2290.0,0.00487802]
[1770111361509,2.51559347,2290.7,2290.0,0.00487802]
[1770111361714,2.51559347,2290.4,2290.0,0.00487802]
[1770111362007,8.72894989,2290.3,2290.0,0.00487802]
[1770111362303,2.51559347,2291.1,2290.0,3.85049985]
[1770111362511,2.51559347,2291.1,2290.2,3.75021791]
[1770111362803,2.51559347,2290.8,2290.1,3.75021791]
[1770111363107,2.51559347,2290.8,2290.0,3.75509593]
[1770111363108,2.52374248,2290.7,2290.0,3.75509593]
[1770111363312,11.25269237,2290.4,2290.1,3.75021791]
[1770111363516,2.52374248,2290.4,2290.1,3.75021791]
[1770111363711,8.72894989,2290.3,2290.1,3.75021791]
[1770111364007,8.72894989,2290.2,2290.1,0.30207782]
[1770111364212,2.48721702,2290.6,2289.7,2.40372949]
[1770111364406,2.48721702,2290.9,2289.9,5.19076301]
[1770111364712,2.48721702,2290.9,2290.0,7.5944925]
[1770111364912,2.48721702,2290.9,2290.1,5.19076301]
[1770111365112,2.48721702,2290.9,2290.1,5.19431736]
[1770111365411,2.48721702,2290.9,2290.4,5.19076301]
[1770111365613,2.48721702,2290.9,2290.6,5.19076301]
[1770111365810,2.48721702,2290.9,2290.1,6.49301472]
[1770111366010,0.00478764,2291.2,2290.2,2.40372949]
[1770111366210,0.00478764,2291.2,2290.3,8.17824732]
[1770111366407,0.00478764,2291.2,2290.2,12.2639782]
[1770111366408,2.49200466,2291.2,2290.2,12.2639782]
[1770111366605,2.49200466,2291.2,2290.2,6.48946037]
[1770111367209,2.48721702,2291.0,2290.1,6.49301472]
[1770111367406,2.48721702,2291.0,2290.1,0.00355435]
[1770111367614,2.48721702,2291.0,2290.1,2.40728384]
[1770111367913,2.48721702,2291.0,2290.1,0.00355435]
[1770111368114,2.48721702,2291.0,2290.2,5.57564584]
[1770111368413,7.29241266,2290.9,2290.1,0.00355435]
[1770111368608,0.00478764,2291.2,2290.1,2.40728384]
[1770111368609,2.49200466,2291.2,2290.1,2.40728384]
[1770111368911,2.48721702,2291.5,2290.5,8.89318986]
[1770111369116,2.48721702,2291.5,2290.6,2.40372949]
[1770111369312,2.48721702,2291.5,2290.6,8.0176123]
[1770111369614,2.48721702,2291.5,2290.5,6.48946037]
[1770111369815,7.4744858,2291.4,2290.5,6.48946037]
[1770111370118,2.48721702,2291.3,2290.2,8.89318986]
[1770111370413,7.4744858,2291.3,2290.3,8.89318986]
[1770111370809,7.4744858,2291.3,2290.2,12.2036239]
[1770111370810,2.48721702,2291.2,2290.2,12.2036239]
[1770111371010,2.48721702,2291.2,2290.1,6.49301472]
[1770111371206,4.55193799,2291.1,2290.1,8.89674421]
[1770111371407,2.48721702,2291.2,2290.3,2.40372949]
[1770111371611,2.48721702,2291.2,2290.5,6.48946037]
[1770111371816,2.48721702,2291.0,2290.3,6.48946037]
[1770111372016,2.48721702,2291.0,2290.2,6.48946037]
[1770111372316,4.80689177,2291.3,2290.4,6.48946037]
[1770111372613,0.00379265,2291.4,2290.4,6.48946037]
[1770111372814,4.71896703,2291.3,2290.4,6.48946037]
[1770111373016,0.00379265,2291.4,2290.4,6.48946037]
[1770111373215,0.00379265,2291.4,2290.5,6.48946037]
[1770111373716,0.00379265,2291.4,2290.6,6.48946037]
[1770111374118,0.00379265,2291.4,2290.7,6.48946037]
[1770111374417,1.37173895,2291.4,2290.5,7.82639657]
[1770111374613,4.68559536,2291.3,2290.3,2.56329543]
[1770111374814,0.00379265,2291.4,2290.3,2.56329543]
[1770111375116,4.99185071,2291.3,2290.3,2.56329543]
[1770111376116,4.99185071,2291.3,2290.4,4.59591256]
[1770111376420,0.00379265,2291.4,2290.6,2.56151726]
[1770111376621,3.056,2291.8,2290.8,2.56151726]
[1770111376814,3.056,2291.8,2290.9,7.15742982]
[1770111377013,4.90273876,2291.7,2291.0,4.59591256]
[1770111377213,4.90273876,2291.7,2291.1,4.59591256]
[1770111377417,4.90273876,2291.7,2291.2,4.59591256]
[1770111377613,4.90667943,2291.7,2291.3,4.58856356]
[1770111377817,0.00394067,2291.7,2290.6,2.56329544]
[1770111378014,4.92172467,2291.6,2290.6,2.56329544]
[1770111378625,4.92172467,2291.6,2290.2,2.56329544]
[1770111379421,4.92172467,2291.6,2290.4,2.56329544]
[1770111380316,1.64582376,2291.6,2290.4,2.56329544]
[1770111380520,9.44616503,2294.5,2290.2,7.82639657]
[1770111380521,3.056,2292.5,2290.7,2.56428733]
[1770111380714,3.056,2292.5,2290.9,2.56428733]
[1770111380916,4.85161325,2292.4,2290.9,2.56428733]
[1770111381118,4.85161325,2292.4,2291.1,2.55537083]
[1770111381525,4.85721334,2292.4,2291.2,5.75192378]
[1770111381721,0.00560009,2292.4,2291.3,2.55537083]
[1770111383625,5.06400904,2292.3,2291.3,2.55537083]
[1770111383820,5.04458711,2292.3,2291.3,2.55537083]
[1770111384025,0.00560009,2292.4,2291.3,2.55537083]
[1770111384423,3.056,2293.1,2291.6,2.55457636]
[1770111384725,4.93205922,2293.0,2291.8,2.55457636]
[1770111385524,0.06519832,2292.9,2291.8,2.55925261]
[1770111385726,0.06519832,2292.9,2291.8,7.76510899]
[1770111385925,4.89902058,2292.8,2291.8,7.76510899]
[1770111386227,0.07059078,2293.0,2291.9,2.53168817]
[1770111386428,4.89902058,2292.8,2291.9,2.53168817]
[1770111386935,0.06519832,2292.9,2291.9,2.53168817]
[1770111387230,4.58855646,2292.7,2291.9,2.53168817]
[1770111387423,4.58855646,2292.8,2291.9,2.53168817]
[1770111387627,4.58855646,2292.9,2291.9,2.53168817]
[1770111387826,0.03780724,2293.0,2291.9,2.53168817]
[1770111388222,0.03241478,2292.6,2291.8,4.60819285]
[1770111388422,0.21828,2292.5,2291.3,2.54807994]
[1770111388622,4.77022463,2292.5,2291.0,2.56428733]
[1770111388827,0.21828,2292.5,2291.0,2.56428733]
[1770111389026,0.04958571,2292.4,2291.0,2.56428733]